{"text_format":"3","workbook":"xlsx","n_sheets":4,"sheets":["CILJI","PREHRANA","TELOVADBA","Izračuni grafikona"],"not_rendered":{"charts":2,"defined_names":19},"read":"whole","date_system":"1900"}

{"sheet":"CILJI","index":0,"n_rows":14,"n_cols":11,"rows_kept":14}
[null,{"$f":"TODAY()","v":"2022-12-13"},"CILJI",{"$nulls":6},"Telovadba","Prehrana"]
[null,"DATUM ZAČETKA","DNEVNIH PREHRANE IN TELOVADBE"]
[null,{"$f":"DatumZačetka+121","v":"2023-04-13"},"ANALIZA PREHRANE"]
[null,"DATUM KONCA"]
[null,{"v":220,"d":"220.00"}]
[null,"ZAČETNA TEŽA"]
[null,{"v":180,"d":"180.00"},"ANALIZA TELOVADBE"]
[null,"KONČNA TEŽA"]
[null,{"$f":"ZačetnaTeža-KončnaTeža","v":40}]
[null,"ŽELENA IZGUBA"]
[null,{"$f":"DatumKonca-DatumZačetka","v":121}]
[null,"DNEVI ZA IZGUBO"]
[null,{"$f":"ŽelenaTeža/B11","v":{"v":0.3305785123966942,"d":"0.33"}}]
[null,"IZGUBA NA DAN"]

{"sheet":"PREHRANA","index":1,"n_rows":19,"n_cols":9,"rows_kept":19}
[null,"PREHRANA",{"$nulls":4},"Cilji","Telovadba"]
[null,{"$f":"Podnaslov","v":"DNEVNIH PREHRANE IN TELOVADBE"}]
[null,"DATUM","ČAS","OPIS","KALORIJE","OGLJIKOVI HIDRATI","BELJAKOVINE","MAŠČOBE","OPOMBE"]
[null,{"$f":"DatumZačetka","v":"2022-12-13"},"07:00:00","Kava",1,0,0,0,"Jutranja kava"]
[null,{"$f":"DatumZačetka","v":"2022-12-13"},"08:00:00","Rogljič",10,10,2,10,"Lahek zajtrk"]
[null,{"$f":"DatumZačetka","v":"2022-12-13"},"12:00:00","Kosilo",283,46,18,{"v":3.5,"d":"4"},"Sendvič s puranom"]
[null,{"$f":"DatumZačetka","v":"2022-12-13"},"19:00:00","Večerja",500,42,35,25,"Testenine s sirom"]
[null,{"$f":"DatumZačetka+1","v":"2022-12-14"},"07:00:00","Kava",1,0,0,0,"Jutranja kava"]
[null,{"$f":"DatumZačetka+1","v":"2022-12-14"},"08:00:00","Prepečenec",10,10,2,10,"Lahek zajtrk"]
[null,{"$f":"DatumZačetka+1","v":"2022-12-14"},"12:00:00","Kosilo",189,26,3,8,"Sendvič"]
[null,{"$f":"DatumZačetka+1","v":"2022-12-14"},"19:00:00","Večerja",477,62,{"v":13.5,"d":"14"},21,"Večerja"]
[null,{"$f":"DatumZačetka+2","v":"2022-12-15"},"07:00:00","Kava",1,0,0,0,"Jutranja kava"]
[null,{"$f":"DatumZačetka+2","v":"2022-12-15"},"08:00:00","Rogljič",245,48,10,{"v":1.5,"d":"2"},"Lahek zajtrk"]
[null,{"$f":"DatumZačetka+2","v":"2022-12-15"},"12:00:00","Kosilo",247,11,43,5,"Solata"]
[null,{"$f":"DatumZačetka+2","v":"2022-12-15"},"19:00:00","Večerja",456,64,32,22,"Večerja"]
[null,{"$f":"DatumZačetka+3","v":"2022-12-16"},"07:00:00","Prepečenec",10,10,2,10,"Lahek zajtrk"]
[null,{"$f":"DatumZačetka+3","v":"2022-12-16"},"10:00:00","Kava",135,{"v":12.36,"d":"12"},{"v":8.81,"d":"9"},{"v":5.51,"d":"6"},"Kava z mlekom"]
[null,{"$f":"DatumZačetka+3","v":"2022-12-16"},"12:15:00","Kosilo",184,7,{"v":5.43,"d":"5"},15,"Solata"]
[null,{"$f":"DatumZačetka+5","v":"2022-12-18"},"19:00:00","Večerja",477,62,{"v":13.5,"d":"14"},21,"Večerja"]

{"sheet":"TELOVADBA","index":2,"n_rows":20,"n_cols":7,"rows_kept":20}
[null,"TELOVADBA",{"$nulls":3},"Prehrana","Cilji"]
[null,{"$f":"Podnaslov","v":"DNEVNIH PREHRANE IN TELOVADBE"}]
[null,"DATUM","TRAJANJE (MIN)","ŠTEVILO PORABLJENIH KALORIJ","OPOMBE"]
[null,{"$f":"DatumZačetka+4","v":"2022-12-17"},30,120,"Vaja na tekalni stezi"]
[null,{"$f":"B4+1","v":"2022-12-18"},60,180,"Nezahtevna aerobna vadba"]
[null,{"$f":"B5+1","v":"2022-12-19"},60,350,"Izredno zahtevna vadba"]
[null,"2022-12-20",30,150,"Vaja na tekalni stezi"]
[null,"2022-12-21",25,125,"Tek"]
[null,"2022-12-22",20,285,"Vaja na tekalni stezi"]
[null,"2022-12-23",40,205,"Tek"]
[null,"2022-12-24",30,335,"Tek"]
[null,"2022-12-25",40,175,"Tek"]
[null,"2022-12-26",45,325,"Vaja na tekalni stezi"]
[null,"2022-12-27",40,270,"Tek"]
[null,"2022-12-28",20,295,"Vaja na tekalni stezi"]
[null,"2022-12-29",45,350,"Tek"]
[null,"2022-12-30",35,320,"Tek"]
[null,"2022-12-31",40,290,"Tek"]
[null,{"$f":"B18+1","v":"2023-01-01"},25,265,"Vaja na tekalni stezi"]
[null,"2023-01-02",20,195,"Tek"]

{"sheet":"Izračuni grafikona","index":3,"n_rows":36,"n_cols":10,"rows_kept":36,"hidden":true,"merged":[[1,1,1,9],[19,1,19,9]]}
[]
[null,"PODATKI ANALIZE PREHRANE NA DIAGRAMU"]
[]
[null,"Začetna vrstica",{"$f":"ROW(Prehrana[[#Headers],[DATUM]])+1","v":4},"DATUM","DAN","MAŠČOBE","BELJAKOVINE","OGLJIKOVI HIDRATI","KALORIJE","Št."]
[null,"Zadnji vnos o prehrani",{"$f":"MATCH(9.99E+307,Prehrana[DATUM])+PrehranaVrsticaZačetek-1","v":19},{"$f":"IFERROR(IF(INDEX(Prehrana[],PrehranaZadnjiKonec-PrehranaVrsticaZačetek-J5,1)<>\"\",INDEX(Prehrana[],PrehranaZadnjiKonec-PrehranaVrsticaZačetek-J5,1),\"\"),\"\")","v":"2022-12-13"},{"$f":"UPPER(TEXT(D5,\"DDD\"))","v":"TOR"},{"$f":"IFERROR((IF(INDEX(Prehrana[],PrehranaZadnjiKonec-PrehranaVrsticaZačetek-J5,1)<>\"\",INDEX(Prehrana[],PrehranaZadnjiKonec-PrehranaVrsticaZačetek-J5,7),NA())),NA())","v":3.5},{"$f":"IFERROR((IF(INDEX(Prehrana[],PrehranaZadnjiKonec-PrehranaVrsticaZačetek-J5,1)<>\"\",INDEX(Prehrana[],PrehranaZadnjiKonec-PrehranaVrsticaZačetek-J5,6),NA())),NA())","v":18},{"$f":"IFERROR((IF(INDEX(Prehrana[],PrehranaZadnjiKonec-PrehranaVrsticaZačetek-J5,1)<>\"\",INDEX(Prehrana[],PrehranaZadnjiKonec-PrehranaVrsticaZačetek-J5,5),NA())),NA())","v":46},{"$f":"IFERROR((IF(INDEX(Prehrana[],PrehranaZadnjiKonec-PrehranaVrsticaZačetek-J5,1)<>\"\",INDEX(Prehrana[],PrehranaZadnjiKonec-PrehranaVrsticaZačetek-J5,4),NA())),NA())","v":283},12]
[{"$nulls":3},{"$f":"IFERROR(IF(INDEX(Prehrana[],PrehranaZadnjiKonec-PrehranaVrsticaZačetek-J6,1)<>\"\",INDEX(Prehrana[],PrehranaZadnjiKonec-PrehranaVrsticaZačetek-J6,1),\"\"),\"\")","v":"2022-12-13"},"TOR",{"$f":"IFERROR((IF(INDEX(Prehrana[],PrehranaZadnjiKonec-PrehranaVrsticaZačetek-J6,1)<>\"\",INDEX(Prehrana[],PrehranaZadnjiKonec-PrehranaVrsticaZačetek-J6,7),NA())),NA())","v":25},{"$f":"IFERROR((IF(INDEX(Prehrana[],PrehranaZadnjiKonec-PrehranaVrsticaZačetek-J6,1)<>\"\",INDEX(Prehrana[],PrehranaZadnjiKonec-PrehranaVrsticaZačetek-J6,6),NA())),NA())","v":35},{"$f":"IFERROR((IF(INDEX(Prehrana[],PrehranaZadnjiKonec-PrehranaVrsticaZačetek-J6,1)<>\"\",INDEX(Prehrana[],PrehranaZadnjiKonec-PrehranaVrsticaZačetek-J6,5),NA())),NA())","v":42},{"$f":"IFERROR((IF(INDEX(Prehrana[],PrehranaZadnjiKonec-PrehranaVrsticaZačetek-J6,1)<>\"\",INDEX(Prehrana[],PrehranaZadnjiKonec-PrehranaVrsticaZačetek-J6,4),NA())),NA())","v":500},11]
[{"$nulls":3},{"$f":"IFERROR(IF(INDEX(Prehrana[],PrehranaZadnjiKonec-PrehranaVrsticaZačetek-J7,1)<>\"\",INDEX(Prehrana[],PrehranaZadnjiKonec-PrehranaVrsticaZačetek-J7,1),\"\"),\"\")","v":"2022-12-14"},"SRE",{"$f":"IFERROR((IF(INDEX(Prehrana[],PrehranaZadnjiKonec-PrehranaVrsticaZačetek-J7,1)<>\"\",INDEX(Prehrana[],PrehranaZadnjiKonec-PrehranaVrsticaZačetek-J7,7),NA())),NA())","v":0},{"$f":"IFERROR((IF(INDEX(Prehrana[],PrehranaZadnjiKonec-PrehranaVrsticaZačetek-J7,1)<>\"\",INDEX(Prehrana[],PrehranaZadnjiKonec-PrehranaVrsticaZačetek-J7,6),NA())),NA())","v":0},{"$f":"IFERROR((IF(INDEX(Prehrana[],PrehranaZadnjiKonec-PrehranaVrsticaZačetek-J7,1)<>\"\",INDEX(Prehrana[],PrehranaZadnjiKonec-PrehranaVrsticaZačetek-J7,5),NA())),NA())","v":0},{"$f":"IFERROR((IF(INDEX(Prehrana[],PrehranaZadnjiKonec-PrehranaVrsticaZačetek-J7,1)<>\"\",INDEX(Prehrana[],PrehranaZadnjiKonec-PrehranaVrsticaZačetek-J7,4),NA())),NA())","v":1},10]
[{"$nulls":3},{"$f":"IFERROR(IF(INDEX(Prehrana[],PrehranaZadnjiKonec-PrehranaVrsticaZačetek-J8,1)<>\"\",INDEX(Prehrana[],PrehranaZadnjiKonec-PrehranaVrsticaZačetek-J8,1),\"\"),\"\")","v":"2022-12-14"},"SRE",{"$f":"IFERROR((IF(INDEX(Prehrana[],PrehranaZadnjiKonec-PrehranaVrsticaZačetek-J8,1)<>\"\",INDEX(Prehrana[],PrehranaZadnjiKonec-PrehranaVrsticaZačetek-J8,7),NA())),NA())","v":10},{"$f":"IFERROR((IF(INDEX(Prehrana[],PrehranaZadnjiKonec-PrehranaVrsticaZačetek-J8,1)<>\"\",INDEX(Prehrana[],PrehranaZadnjiKonec-PrehranaVrsticaZačetek-J8,6),NA())),NA())","v":2},{"$f":"IFERROR((IF(INDEX(Prehrana[],PrehranaZadnjiKonec-PrehranaVrsticaZačetek-J8,1)<>\"\",INDEX(Prehrana[],PrehranaZadnjiKonec-PrehranaVrsticaZačetek-J8,5),NA())),NA())","v":10},{"$f":"IFERROR((IF(INDEX(Prehrana[],PrehranaZadnjiKonec-PrehranaVrsticaZačetek-J8,1)<>\"\",INDEX(Prehrana[],PrehranaZadnjiKonec-PrehranaVrsticaZačetek-J8,4),NA())),NA())","v":10},9]
[{"$nulls":3},{"$f":"IFERROR(IF(INDEX(Prehrana[],PrehranaZadnjiKonec-PrehranaVrsticaZačetek-J9,1)<>\"\",INDEX(Prehrana[],PrehranaZadnjiKonec-PrehranaVrsticaZačetek-J9,1),\"\"),\"\")","v":"2022-12-14"},"SRE",{"$f":"IFERROR((IF(INDEX(Prehrana[],PrehranaZadnjiKonec-PrehranaVrsticaZačetek-J9,1)<>\"\",INDEX(Prehrana[],PrehranaZadnjiKonec-PrehranaVrsticaZačetek-J9,7),NA())),NA())","v":8},{"$f":"IFERROR((IF(INDEX(Prehrana[],PrehranaZadnjiKonec-PrehranaVrsticaZačetek-J9,1)<>\"\",INDEX(Prehrana[],PrehranaZadnjiKonec-PrehranaVrsticaZačetek-J9,6),NA())),NA())","v":3},{"$f":"IFERROR((IF(INDEX(Prehrana[],PrehranaZadnjiKonec-PrehranaVrsticaZačetek-J9,1)<>\"\",INDEX(Prehrana[],PrehranaZadnjiKonec-PrehranaVrsticaZačetek-J9,5),NA())),NA())","v":26},{"$f":"IFERROR((IF(INDEX(Prehrana[],PrehranaZadnjiKonec-PrehranaVrsticaZačetek-J9,1)<>\"\",INDEX(Prehrana[],PrehranaZadnjiKonec-PrehranaVrsticaZačetek-J9,4),NA())),NA())","v":189},8]
[{"$nulls":3},{"$f":"IFERROR(IF(INDEX(Prehrana[],PrehranaZadnjiKonec-PrehranaVrsticaZačetek-J10,1)<>\"\",INDEX(Prehrana[],PrehranaZadnjiKonec-PrehranaVrsticaZačetek-J10,1),\"\"),\"\")","v":"2022-12-14"},"SRE",{"$f":"IFERROR((IF(INDEX(Prehrana[],PrehranaZadnjiKonec-PrehranaVrsticaZačetek-J10,1)<>\"\",INDEX(Prehrana[],PrehranaZadnjiKonec-PrehranaVrsticaZačetek-J10,7),NA())),NA())","v":21},{"$f":"IFERROR((IF(INDEX(Prehrana[],PrehranaZadnjiKonec-PrehranaVrsticaZačetek-J10,1)<>\"\",INDEX(Prehrana[],PrehranaZadnjiKonec-PrehranaVrsticaZačetek-J10,6),NA())),NA())","v":13.5},{"$f":"IFERROR((IF(INDEX(Prehrana[],PrehranaZadnjiKonec-PrehranaVrsticaZačetek-J10,1)<>\"\",INDEX(Prehrana[],PrehranaZadnjiKonec-PrehranaVrsticaZačetek-J10,5),NA())),NA())","v":62},{"$f":"IFERROR((IF(INDEX(Prehrana[],PrehranaZadnjiKonec-PrehranaVrsticaZačetek-J10,1)<>\"\",INDEX(Prehrana[],PrehranaZadnjiKonec-PrehranaVrsticaZačetek-J10,4),NA())),NA())","v":477},7]
[{"$nulls":3},{"$f":"IFERROR(IF(INDEX(Prehrana[],PrehranaZadnjiKonec-PrehranaVrsticaZačetek-J11,1)<>\"\",INDEX(Prehrana[],PrehranaZadnjiKonec-PrehranaVrsticaZačetek-J11,1),\"\"),\"\")","v":"2022-12-15"},"ČET",{"$f":"IFERROR((IF(INDEX(Prehrana[],PrehranaZadnjiKonec-PrehranaVrsticaZačetek-J11,1)<>\"\",INDEX(Prehrana[],PrehranaZadnjiKonec-PrehranaVrsticaZačetek-J11,7),NA())),NA())","v":0},{"$f":"IFERROR((IF(INDEX(Prehrana[],PrehranaZadnjiKonec-PrehranaVrsticaZačetek-J11,1)<>\"\",INDEX(Prehrana[],PrehranaZadnjiKonec-PrehranaVrsticaZačetek-J11,6),NA())),NA())","v":0},{"$f":"IFERROR((IF(INDEX(Prehrana[],PrehranaZadnjiKonec-PrehranaVrsticaZačetek-J11,1)<>\"\",INDEX(Prehrana[],PrehranaZadnjiKonec-PrehranaVrsticaZačetek-J11,5),NA())),NA())","v":0},{"$f":"IFERROR((IF(INDEX(Prehrana[],PrehranaZadnjiKonec-PrehranaVrsticaZačetek-J11,1)<>\"\",INDEX(Prehrana[],PrehranaZadnjiKonec-PrehranaVrsticaZačetek-J11,4),NA())),NA())","v":1},6]
[{"$nulls":3},{"$f":"IFERROR(IF(INDEX(Prehrana[],PrehranaZadnjiKonec-PrehranaVrsticaZačetek-J12,1)<>\"\",INDEX(Prehrana[],PrehranaZadnjiKonec-PrehranaVrsticaZačetek-J12,1),\"\"),\"\")","v":"2022-12-15"},"ČET",{"$f":"IFERROR((IF(INDEX(Prehrana[],PrehranaZadnjiKonec-PrehranaVrsticaZačetek-J12,1)<>\"\",INDEX(Prehrana[],PrehranaZadnjiKonec-PrehranaVrsticaZačetek-J12,7),NA())),NA())","v":1.5},{"$f":"IFERROR((IF(INDEX(Prehrana[],PrehranaZadnjiKonec-PrehranaVrsticaZačetek-J12,1)<>\"\",INDEX(Prehrana[],PrehranaZadnjiKonec-PrehranaVrsticaZačetek-J12,6),NA())),NA())","v":10},{"$f":"IFERROR((IF(INDEX(Prehrana[],PrehranaZadnjiKonec-PrehranaVrsticaZačetek-J12,1)<>\"\",INDEX(Prehrana[],PrehranaZadnjiKonec-PrehranaVrsticaZačetek-J12,5),NA())),NA())","v":48},{"$f":"IFERROR((IF(INDEX(Prehrana[],PrehranaZadnjiKonec-PrehranaVrsticaZačetek-J12,1)<>\"\",INDEX(Prehrana[],PrehranaZadnjiKonec-PrehranaVrsticaZačetek-J12,4),NA())),NA())","v":245},5]
[{"$nulls":3},{"$f":"IFERROR(IF(INDEX(Prehrana[],PrehranaZadnjiKonec-PrehranaVrsticaZačetek-J13,1)<>\"\",INDEX(Prehrana[],PrehranaZadnjiKonec-PrehranaVrsticaZačetek-J13,1),\"\"),\"\")","v":"2022-12-15"},"ČET",{"$f":"IFERROR((IF(INDEX(Prehrana[],PrehranaZadnjiKonec-PrehranaVrsticaZačetek-J13,1)<>\"\",INDEX(Prehrana[],PrehranaZadnjiKonec-PrehranaVrsticaZačetek-J13,7),NA())),NA())","v":5},{"$f":"IFERROR((IF(INDEX(Prehrana[],PrehranaZadnjiKonec-PrehranaVrsticaZačetek-J13,1)<>\"\",INDEX(Prehrana[],PrehranaZadnjiKonec-PrehranaVrsticaZačetek-J13,6),NA())),NA())","v":43},{"$f":"IFERROR((IF(INDEX(Prehrana[],PrehranaZadnjiKonec-PrehranaVrsticaZačetek-J13,1)<>\"\",INDEX(Prehrana[],PrehranaZadnjiKonec-PrehranaVrsticaZačetek-J13,5),NA())),NA())","v":11},{"$f":"IFERROR((IF(INDEX(Prehrana[],PrehranaZadnjiKonec-PrehranaVrsticaZačetek-J13,1)<>\"\",INDEX(Prehrana[],PrehranaZadnjiKonec-PrehranaVrsticaZačetek-J13,4),NA())),NA())","v":247},4]
[{"$nulls":3},{"$f":"IFERROR(IF(INDEX(Prehrana[],PrehranaZadnjiKonec-PrehranaVrsticaZačetek-J14,1)<>\"\",INDEX(Prehrana[],PrehranaZadnjiKonec-PrehranaVrsticaZačetek-J14,1),\"\"),\"\")","v":"2022-12-15"},"ČET",{"$f":"IFERROR((IF(INDEX(Prehrana[],PrehranaZadnjiKonec-PrehranaVrsticaZačetek-J14,1)<>\"\",INDEX(Prehrana[],PrehranaZadnjiKonec-PrehranaVrsticaZačetek-J14,7),NA())),NA())","v":22},{"$f":"IFERROR((IF(INDEX(Prehrana[],PrehranaZadnjiKonec-PrehranaVrsticaZačetek-J14,1)<>\"\",INDEX(Prehrana[],PrehranaZadnjiKonec-PrehranaVrsticaZačetek-J14,6),NA())),NA())","v":32},{"$f":"IFERROR((IF(INDEX(Prehrana[],PrehranaZadnjiKonec-PrehranaVrsticaZačetek-J14,1)<>\"\",INDEX(Prehrana[],PrehranaZadnjiKonec-PrehranaVrsticaZačetek-J14,5),NA())),NA())","v":64},{"$f":"IFERROR((IF(INDEX(Prehrana[],PrehranaZadnjiKonec-PrehranaVrsticaZačetek-J14,1)<>\"\",INDEX(Prehrana[],PrehranaZadnjiKonec-PrehranaVrsticaZačetek-J14,4),NA())),NA())","v":456},3]
[{"$nulls":3},{"$f":"IFERROR(IF(INDEX(Prehrana[],PrehranaZadnjiKonec-PrehranaVrsticaZačetek-J15,1)<>\"\",INDEX(Prehrana[],PrehranaZadnjiKonec-PrehranaVrsticaZačetek-J15,1),\"\"),\"\")","v":"2022-12-16"},"PET",{"$f":"IFERROR((IF(INDEX(Prehrana[],PrehranaZadnjiKonec-PrehranaVrsticaZačetek-J15,1)<>\"\",INDEX(Prehrana[],PrehranaZadnjiKonec-PrehranaVrsticaZačetek-J15,7),NA())),NA())","v":10},{"$f":"IFERROR((IF(INDEX(Prehrana[],PrehranaZadnjiKonec-PrehranaVrsticaZačetek-J15,1)<>\"\",INDEX(Prehrana[],PrehranaZadnjiKonec-PrehranaVrsticaZačetek-J15,6),NA())),NA())","v":2},{"$f":"IFERROR((IF(INDEX(Prehrana[],PrehranaZadnjiKonec-PrehranaVrsticaZačetek-J15,1)<>\"\",INDEX(Prehrana[],PrehranaZadnjiKonec-PrehranaVrsticaZačetek-J15,5),NA())),NA())","v":10},{"$f":"IFERROR((IF(INDEX(Prehrana[],PrehranaZadnjiKonec-PrehranaVrsticaZačetek-J15,1)<>\"\",INDEX(Prehrana[],PrehranaZadnjiKonec-PrehranaVrsticaZačetek-J15,4),NA())),NA())","v":10},2]
[{"$nulls":3},{"$f":"IFERROR(IF(INDEX(Prehrana[],PrehranaZadnjiKonec-PrehranaVrsticaZačetek-J16,1)<>\"\",INDEX(Prehrana[],PrehranaZadnjiKonec-PrehranaVrsticaZačetek-J16,1),\"\"),\"\")","v":"2022-12-16"},"PET",{"$f":"IFERROR((IF(INDEX(Prehrana[],PrehranaZadnjiKonec-PrehranaVrsticaZačetek-J16,1)<>\"\",INDEX(Prehrana[],PrehranaZadnjiKonec-PrehranaVrsticaZačetek-J16,7),NA())),NA())","v":5.51},{"$f":"IFERROR((IF(INDEX(Prehrana[],PrehranaZadnjiKonec-PrehranaVrsticaZačetek-J16,1)<>\"\",INDEX(Prehrana[],PrehranaZadnjiKonec-PrehranaVrsticaZačetek-J16,6),NA())),NA())","v":8.81},{"$f":"IFERROR((IF(INDEX(Prehrana[],PrehranaZadnjiKonec-PrehranaVrsticaZačetek-J16,1)<>\"\",INDEX(Prehrana[],PrehranaZadnjiKonec-PrehranaVrsticaZačetek-J16,5),NA())),NA())","v":12.36},{"$f":"IFERROR((IF(INDEX(Prehrana[],PrehranaZadnjiKonec-PrehranaVrsticaZačetek-J16,1)<>\"\",INDEX(Prehrana[],PrehranaZadnjiKonec-PrehranaVrsticaZačetek-J16,4),NA())),NA())","v":135},1]
[{"$nulls":3},{"$f":"IFERROR(IF(INDEX(Prehrana[],PrehranaZadnjiKonec-PrehranaVrsticaZačetek-J17,1)<>\"\",INDEX(Prehrana[],PrehranaZadnjiKonec-PrehranaVrsticaZačetek-J17,1),\"\"),\"\")","v":"2022-12-16"},"PET",{"$f":"IFERROR((IF(INDEX(Prehrana[],PrehranaZadnjiKonec-PrehranaVrsticaZačetek-J17,1)<>\"\",INDEX(Prehrana[],PrehranaZadnjiKonec-PrehranaVrsticaZačetek-J17,7),NA())),NA())","v":15},{"$f":"IFERROR((IF(INDEX(Prehrana[],PrehranaZadnjiKonec-PrehranaVrsticaZačetek-J17,1)<>\"\",INDEX(Prehrana[],PrehranaZadnjiKonec-PrehranaVrsticaZačetek-J17,6),NA())),NA())","v":5.43},{"$f":"IFERROR((IF(INDEX(Prehrana[],PrehranaZadnjiKonec-PrehranaVrsticaZačetek-J17,1)<>\"\",INDEX(Prehrana[],PrehranaZadnjiKonec-PrehranaVrsticaZačetek-J17,5),NA())),NA())","v":7},{"$f":"IFERROR((IF(INDEX(Prehrana[],PrehranaZadnjiKonec-PrehranaVrsticaZačetek-J17,1)<>\"\",INDEX(Prehrana[],PrehranaZadnjiKonec-PrehranaVrsticaZačetek-J17,4),NA())),NA())","v":184},0]
[{"$nulls":3},{"$f":"IFERROR(IF(INDEX(Prehrana[],PrehranaZadnjiKonec-PrehranaVrsticaZačetek-J18,1)<>\"\",INDEX(Prehrana[],PrehranaZadnjiKonec-PrehranaVrsticaZačetek-J18,1)),\"\")","v":"2022-12-18"},"NED",{"$f":"IFERROR((IF(INDEX(Prehrana[],PrehranaZadnjiKonec-PrehranaVrsticaZačetek-J18,1)<>\"\",INDEX(Prehrana[],PrehranaZadnjiKonec-PrehranaVrsticaZačetek-J18,7),NA())),NA())","v":21},{"$f":"IFERROR((IF(INDEX(Prehrana[],PrehranaZadnjiKonec-PrehranaVrsticaZačetek-J18,1)<>\"\",INDEX(Prehrana[],PrehranaZadnjiKonec-PrehranaVrsticaZačetek-J18,6),NA())),NA())","v":13.5},{"$f":"IFERROR((IF(INDEX(Prehrana[],PrehranaZadnjiKonec-PrehranaVrsticaZačetek-J18,1)<>\"\",INDEX(Prehrana[],PrehranaZadnjiKonec-PrehranaVrsticaZačetek-J18,5),NA())),NA())","v":62},{"$f":"IFERROR((IF(INDEX(Prehrana[],PrehranaZadnjiKonec-PrehranaVrsticaZačetek-J18,1)<>\"\",INDEX(Prehrana[],PrehranaZadnjiKonec-PrehranaVrsticaZačetek-J18,4),NA())),NA())","v":477},-1]
[]
[null,"PODATKI ANALIZE TELOVADBE NA DIAGRAMU"]
[]
[null,"Začetna vrstica",{"$f":"ROW(Telovadba[[#Headers],[DATUM]])+1","v":4},"DATUM","DAN","TRAJANJE (MIN)","ŠTEVILO PORABLJENIH KALORIJ","Št."]
[null,"Zadnji vnos o telovadbi",{"$f":"MATCH(9.99E+307,Telovadba[DATUM])+TelovadbaZačetnaVrstica-1","v":20},{"$f":"IFERROR(IF(INDEX(Telovadba[],TelovadbaZadnjiKonec-TelovadbaZačetnaVrstica-H23,1)<>\"\",INDEX(Telovadba[],TelovadbaZadnjiKonec-TelovadbaZačetnaVrstica-H23,1)),\"\")","v":"2023-01-02"},{"$f":"UPPER(TEXT(D23,\"DDD\"))","v":"PON"},{"$f":"IFERROR((IF(INDEX(Telovadba[],TelovadbaZadnjiKonec-TelovadbaZačetnaVrstica-H23,1)<>\"\",INDEX(Telovadba[],TelovadbaZadnjiKonec-TelovadbaZačetnaVrstica-H23,2),0)),0)","v":20},{"$f":"IFERROR((IF(INDEX(Telovadba[],TelovadbaZadnjiKonec-TelovadbaZačetnaVrstica-H23,2)<>\"\",INDEX(Telovadba[],TelovadbaZadnjiKonec-TelovadbaZačetnaVrstica-H23,3),0)),0)","v":195},-1]
[{"$nulls":3},{"$f":"IFERROR(IF(INDEX(Telovadba[],TelovadbaZadnjiKonec-TelovadbaZačetnaVrstica-H24,1)<>\"\",INDEX(Telovadba[],TelovadbaZadnjiKonec-TelovadbaZačetnaVrstica-H24,1)),\"\")","v":"2023-01-01"},"NED",{"$f":"IFERROR((IF(INDEX(Telovadba[],TelovadbaZadnjiKonec-TelovadbaZačetnaVrstica-H24,1)<>\"\",INDEX(Telovadba[],TelovadbaZadnjiKonec-TelovadbaZačetnaVrstica-H24,2),0)),0)","v":25},{"$f":"IFERROR((IF(INDEX(Telovadba[],TelovadbaZadnjiKonec-TelovadbaZačetnaVrstica-H24,2)<>\"\",INDEX(Telovadba[],TelovadbaZadnjiKonec-TelovadbaZačetnaVrstica-H24,3),0)),0)","v":265},0]
[{"$nulls":3},{"$f":"IFERROR(IF(INDEX(Telovadba[],TelovadbaZadnjiKonec-TelovadbaZačetnaVrstica-H25,1)<>\"\",INDEX(Telovadba[],TelovadbaZadnjiKonec-TelovadbaZačetnaVrstica-H25,1)),\"\")","v":"2022-12-31"},"SOB",{"$f":"IFERROR((IF(INDEX(Telovadba[],TelovadbaZadnjiKonec-TelovadbaZačetnaVrstica-H25,1)<>\"\",INDEX(Telovadba[],TelovadbaZadnjiKonec-TelovadbaZačetnaVrstica-H25,2),0)),0)","v":40},{"$f":"IFERROR((IF(INDEX(Telovadba[],TelovadbaZadnjiKonec-TelovadbaZačetnaVrstica-H25,2)<>\"\",INDEX(Telovadba[],TelovadbaZadnjiKonec-TelovadbaZačetnaVrstica-H25,3),0)),0)","v":290},1]
[{"$nulls":3},{"$f":"IFERROR(IF(INDEX(Telovadba[],TelovadbaZadnjiKonec-TelovadbaZačetnaVrstica-H26,1)<>\"\",INDEX(Telovadba[],TelovadbaZadnjiKonec-TelovadbaZačetnaVrstica-H26,1)),\"\")","v":"2022-12-30"},"PET",{"$f":"IFERROR((IF(INDEX(Telovadba[],TelovadbaZadnjiKonec-TelovadbaZačetnaVrstica-H26,1)<>\"\",INDEX(Telovadba[],TelovadbaZadnjiKonec-TelovadbaZačetnaVrstica-H26,2),0)),0)","v":35},{"$f":"IFERROR((IF(INDEX(Telovadba[],TelovadbaZadnjiKonec-TelovadbaZačetnaVrstica-H26,2)<>\"\",INDEX(Telovadba[],TelovadbaZadnjiKonec-TelovadbaZačetnaVrstica-H26,3),0)),0)","v":320},2]
[{"$nulls":3},{"$f":"IFERROR(IF(INDEX(Telovadba[],TelovadbaZadnjiKonec-TelovadbaZačetnaVrstica-H27,1)<>\"\",INDEX(Telovadba[],TelovadbaZadnjiKonec-TelovadbaZačetnaVrstica-H27,1)),\"\")","v":"2022-12-29"},"ČET",{"$f":"IFERROR((IF(INDEX(Telovadba[],TelovadbaZadnjiKonec-TelovadbaZačetnaVrstica-H27,1)<>\"\",INDEX(Telovadba[],TelovadbaZadnjiKonec-TelovadbaZačetnaVrstica-H27,2),0)),0)","v":45},{"$f":"IFERROR((IF(INDEX(Telovadba[],TelovadbaZadnjiKonec-TelovadbaZačetnaVrstica-H27,2)<>\"\",INDEX(Telovadba[],TelovadbaZadnjiKonec-TelovadbaZačetnaVrstica-H27,3),0)),0)","v":350},3]
[{"$nulls":3},{"$f":"IFERROR(IF(INDEX(Telovadba[],TelovadbaZadnjiKonec-TelovadbaZačetnaVrstica-H28,1)<>\"\",INDEX(Telovadba[],TelovadbaZadnjiKonec-TelovadbaZačetnaVrstica-H28,1)),\"\")","v":"2022-12-28"},"SRE",{"$f":"IFERROR((IF(INDEX(Telovadba[],TelovadbaZadnjiKonec-TelovadbaZačetnaVrstica-H28,1)<>\"\",INDEX(Telovadba[],TelovadbaZadnjiKonec-TelovadbaZačetnaVrstica-H28,2),0)),0)","v":20},{"$f":"IFERROR((IF(INDEX(Telovadba[],TelovadbaZadnjiKonec-TelovadbaZačetnaVrstica-H28,2)<>\"\",INDEX(Telovadba[],TelovadbaZadnjiKonec-TelovadbaZačetnaVrstica-H28,3),0)),0)","v":295},4]
[{"$nulls":3},{"$f":"IFERROR(IF(INDEX(Telovadba[],TelovadbaZadnjiKonec-TelovadbaZačetnaVrstica-H29,1)<>\"\",INDEX(Telovadba[],TelovadbaZadnjiKonec-TelovadbaZačetnaVrstica-H29,1)),\"\")","v":"2022-12-27"},"TOR",{"$f":"IFERROR((IF(INDEX(Telovadba[],TelovadbaZadnjiKonec-TelovadbaZačetnaVrstica-H29,1)<>\"\",INDEX(Telovadba[],TelovadbaZadnjiKonec-TelovadbaZačetnaVrstica-H29,2),0)),0)","v":40},{"$f":"IFERROR((IF(INDEX(Telovadba[],TelovadbaZadnjiKonec-TelovadbaZačetnaVrstica-H29,2)<>\"\",INDEX(Telovadba[],TelovadbaZadnjiKonec-TelovadbaZačetnaVrstica-H29,3),0)),0)","v":270},5]
[{"$nulls":3},{"$f":"IFERROR(IF(INDEX(Telovadba[],TelovadbaZadnjiKonec-TelovadbaZačetnaVrstica-H30,1)<>\"\",INDEX(Telovadba[],TelovadbaZadnjiKonec-TelovadbaZačetnaVrstica-H30,1)),\"\")","v":"2022-12-26"},"PON",{"$f":"IFERROR((IF(INDEX(Telovadba[],TelovadbaZadnjiKonec-TelovadbaZačetnaVrstica-H30,1)<>\"\",INDEX(Telovadba[],TelovadbaZadnjiKonec-TelovadbaZačetnaVrstica-H30,2),0)),0)","v":45},{"$f":"IFERROR((IF(INDEX(Telovadba[],TelovadbaZadnjiKonec-TelovadbaZačetnaVrstica-H30,2)<>\"\",INDEX(Telovadba[],TelovadbaZadnjiKonec-TelovadbaZačetnaVrstica-H30,3),0)),0)","v":325},6]
[{"$nulls":3},{"$f":"IFERROR(IF(INDEX(Telovadba[],TelovadbaZadnjiKonec-TelovadbaZačetnaVrstica-H31,1)<>\"\",INDEX(Telovadba[],TelovadbaZadnjiKonec-TelovadbaZačetnaVrstica-H31,1)),\"\")","v":"2022-12-25"},"NED",{"$f":"IFERROR((IF(INDEX(Telovadba[],TelovadbaZadnjiKonec-TelovadbaZačetnaVrstica-H31,1)<>\"\",INDEX(Telovadba[],TelovadbaZadnjiKonec-TelovadbaZačetnaVrstica-H31,2),0)),0)","v":40},{"$f":"IFERROR((IF(INDEX(Telovadba[],TelovadbaZadnjiKonec-TelovadbaZačetnaVrstica-H31,2)<>\"\",INDEX(Telovadba[],TelovadbaZadnjiKonec-TelovadbaZačetnaVrstica-H31,3),0)),0)","v":175},7]
[{"$nulls":3},{"$f":"IFERROR(IF(INDEX(Telovadba[],TelovadbaZadnjiKonec-TelovadbaZačetnaVrstica-H32,1)<>\"\",INDEX(Telovadba[],TelovadbaZadnjiKonec-TelovadbaZačetnaVrstica-H32,1)),\"\")","v":"2022-12-24"},"SOB",{"$f":"IFERROR((IF(INDEX(Telovadba[],TelovadbaZadnjiKonec-TelovadbaZačetnaVrstica-H32,1)<>\"\",INDEX(Telovadba[],TelovadbaZadnjiKonec-TelovadbaZačetnaVrstica-H32,2),0)),0)","v":30},{"$f":"IFERROR((IF(INDEX(Telovadba[],TelovadbaZadnjiKonec-TelovadbaZačetnaVrstica-H32,2)<>\"\",INDEX(Telovadba[],TelovadbaZadnjiKonec-TelovadbaZačetnaVrstica-H32,3),0)),0)","v":335},8]
[{"$nulls":3},{"$f":"IFERROR(IF(INDEX(Telovadba[],TelovadbaZadnjiKonec-TelovadbaZačetnaVrstica-H33,1)<>\"\",INDEX(Telovadba[],TelovadbaZadnjiKonec-TelovadbaZačetnaVrstica-H33,1)),\"\")","v":"2022-12-23"},"PET",{"$f":"IFERROR((IF(INDEX(Telovadba[],TelovadbaZadnjiKonec-TelovadbaZačetnaVrstica-H33,1)<>\"\",INDEX(Telovadba[],TelovadbaZadnjiKonec-TelovadbaZačetnaVrstica-H33,2),0)),0)","v":40},{"$f":"IFERROR((IF(INDEX(Telovadba[],TelovadbaZadnjiKonec-TelovadbaZačetnaVrstica-H33,2)<>\"\",INDEX(Telovadba[],TelovadbaZadnjiKonec-TelovadbaZačetnaVrstica-H33,3),0)),0)","v":205},9]
[{"$nulls":3},{"$f":"IFERROR(IF(INDEX(Telovadba[],TelovadbaZadnjiKonec-TelovadbaZačetnaVrstica-H34,1)<>\"\",INDEX(Telovadba[],TelovadbaZadnjiKonec-TelovadbaZačetnaVrstica-H34,1)),\"\")","v":"2022-12-22"},"ČET",{"$f":"IFERROR((IF(INDEX(Telovadba[],TelovadbaZadnjiKonec-TelovadbaZačetnaVrstica-H34,1)<>\"\",INDEX(Telovadba[],TelovadbaZadnjiKonec-TelovadbaZačetnaVrstica-H34,2),0)),0)","v":20},{"$f":"IFERROR((IF(INDEX(Telovadba[],TelovadbaZadnjiKonec-TelovadbaZačetnaVrstica-H34,2)<>\"\",INDEX(Telovadba[],TelovadbaZadnjiKonec-TelovadbaZačetnaVrstica-H34,3),0)),0)","v":285},10]
[{"$nulls":3},{"$f":"IFERROR(IF(INDEX(Telovadba[],TelovadbaZadnjiKonec-TelovadbaZačetnaVrstica-H35,1)<>\"\",INDEX(Telovadba[],TelovadbaZadnjiKonec-TelovadbaZačetnaVrstica-H35,1)),\"\")","v":"2022-12-21"},"SRE",{"$f":"IFERROR((IF(INDEX(Telovadba[],TelovadbaZadnjiKonec-TelovadbaZačetnaVrstica-H35,1)<>\"\",INDEX(Telovadba[],TelovadbaZadnjiKonec-TelovadbaZačetnaVrstica-H35,2),0)),0)","v":25},{"$f":"IFERROR((IF(INDEX(Telovadba[],TelovadbaZadnjiKonec-TelovadbaZačetnaVrstica-H35,2)<>\"\",INDEX(Telovadba[],TelovadbaZadnjiKonec-TelovadbaZačetnaVrstica-H35,3),0)),0)","v":125},11]
[{"$nulls":3},{"$f":"IFERROR(IF(INDEX(Telovadba[],TelovadbaZadnjiKonec-TelovadbaZačetnaVrstica-H36,1)<>\"\",INDEX(Telovadba[],TelovadbaZadnjiKonec-TelovadbaZačetnaVrstica-H36,1)),\"\")","v":"2022-12-20"},"TOR",{"$f":"IFERROR((IF(INDEX(Telovadba[],TelovadbaZadnjiKonec-TelovadbaZačetnaVrstica-H36,1)<>\"\",INDEX(Telovadba[],TelovadbaZadnjiKonec-TelovadbaZačetnaVrstica-H36,2),0)),0)","v":30},{"$f":"IFERROR((IF(INDEX(Telovadba[],TelovadbaZadnjiKonec-TelovadbaZačetnaVrstica-H36,2)<>\"\",INDEX(Telovadba[],TelovadbaZadnjiKonec-TelovadbaZačetnaVrstica-H36,3),0)),0)","v":150},12]